bitfinex/quotes_BTCUSD_20250218
["timestamp","ask_amount","ask_price","bid_price","bid_amount"]
[1739881098913,0.1800951,96064.0,96063.0,0.0073402]
[1739881099091,0.0239501,96064.0,96063.0,0.0063402]
[1739881099494,0.1800951,96064.0,96063.0,0.0003402]
[1739881100797,0.1800951,96064.0,96063.0,0.0033402]
[1739881101167,0.1800951,96064.0,96063.0,0.0053402]
[1739881101369,0.1800951,96064.0,96063.0,0.0033402]
[1739881101799,0.1800951,96064.0,96063.0,0.0063402]
[1739881103175,0.16378025,96064.0,96063.0,0.0063402]
[1739881105071,0.00763525,96064.0,96063.0,0.0063402]
[1739881105375,0.16378025,96064.0,96063.0,0.0063402]
[1739881106141,0.16378025,96064.0,96063.0,0.0003402]
[1739881107795,0.18009547,96064.0,96063.0,0.0003402]
[1739881108003,0.18009547,96064.0,96063.0,0.0023402]
[1739881108398,0.18009547,96064.0,96063.0,0.0043402]
[1739881114850,0.16378025,96064.0,96063.0,0.0043402]
[1739881115963,0.20319432,96064.0,96063.0,0.0043402]
[1739881117039,0.20319432,96064.0,96063.0,0.0023402]
[1739881117290,0.42189732,96064.0,96063.0,0.0003402]
[1739881118005,0.38248325,96064.0,96063.0,0.0003402]
[1739881118556,0.53248325,96064.0,96063.0,0.0003402]
[1739881118940,2.24701225,96064.0,96063.0,0.0003402]
[1739881119140,1.85169425,96064.0,96063.0,0.0003402]
[1739881119398,1.86801082,96064.0,96063.0,0.0003402]
[1739881120620,1.60690016,96064.0,96063.0,0.0003402]
[1739881121224,1.34404889,96064.0,96063.0,0.0003402]
[1739881121700,1.50019389,96064.0,96063.0,0.0003402]
[1739881121906,1.84234589,96064.0,96063.0,0.0003402]
[1739881122655,1.84751059,96064.0,96063.0,0.0003402]
[1739881122844,1.83119402,96064.0,96063.0,0.0003402]
[1739881123400,0.51198302,96064.0,96063.0,0.0003402]
[1739881123640,3.32240527,96064.0,96063.0,0.0003402]
[1739881124295,3.10580702,96064.0,96063.0,0.0003402]
[1739881125554,1.41950702,96064.0,96063.0,0.0003402]
[1739881125753,1.43582376,96064.0,96063.0,0.0003402]
[1739881125958,1.34489976,96064.0,96063.0,0.0003402]
[1739881129048,1.37619676,96064.0,96063.0,0.0003402]
[1739881129247,1.37636706,96064.0,96063.0,0.0003402]
[1739881131679,0.75753306,96064.0,96063.0,0.0003402]
[1739881131890,0.49808206,96064.0,96063.0,0.0003402]
[1739881132082,0.03017306,96064.0,96063.0,0.0776402]
[1739881132293,0.16483662,96064.0,96063.0,0.0776402]
[1739881132510,0.00869162,96064.0,96063.0,0.0776402]
[1739881132711,0.00869162,96064.0,96063.0,0.2337872]
[1739881132914,0.0011703,96064.0,96063.0,0.12639284]
[1739881133235,0.00742539,96064.0,96063.0,0.0776402]
[1739881133562,0.00642539,96064.0,96063.0,0.0776402]
[1739881133761,0.16257039,96064.0,96063.0,0.0816402]
[1739881133962,0.16257039,96064.0,96063.0,0.0866402]
[1739881134169,0.00642539,96064.0,96063.0,0.0866402]
[1739881135335,0.16257039,96064.0,96063.0,0.0866402]
[1739881135506,0.00642539,96064.0,96063.0,0.0866402]
[1739881138506,0.00642539,96064.0,96063.0,0.0816402]
[1739881138976,0.00642539,96064.0,96063.0,0.0866402]
[1739881139519,0.00642539,96064.0,96063.0,0.0826402]
[1739881139934,0.00642539,96064.0,96063.0,0.0866402]
[1739881140578,0.00642539,96064.0,96063.0,0.13629454]
[1739881141480,0.156145,96064.0,96063.0,0.0866402]
[1739881141678,0.156143,96066.0,96063.0,0.0866402]
[1739881141876,0.156141,96067.0,96063.0,0.0866402]
[1739881142400,0.156142,96067.0,96063.0,0.0866402]
[1739881142653,0.156143,96066.0,96063.0,0.0776402]
[1739881142832,0.156143,96066.0,96063.0,0.0826402]
[1739881143184,0.156143,96066.0,96063.0,0.0856402]
[1739881143357,0.156143,96066.0,96063.0,0.0806402]
[1739881143568,0.12163587,96073.0,96063.0,0.0846402]
[1739881143769,0.156145,96064.0,96063.0,0.0816402]
[1739881144399,0.156145,96064.0,96063.0,0.0826402]
[1739881144801,0.208186,96068.0,96063.0,0.0826402]
[1739881144802,0.208186,96068.0,96063.0,0.0846402]
[1739881145009,0.156145,96064.0,96063.0,0.0846402]
[1739881145792,0.156145,96064.0,96063.0,0.0796402]
[1739881145988,0.156145,96064.0,96063.0,0.0033402]
[1739881146196,0.156145,96064.0,96063.0,0.0053402]
[1739881146394,0.156145,96064.0,96063.0,0.0023402]
[1739881146593,0.156145,96064.0,96063.0,0.0003402]
[1739881146800,0.156145,96064.0,96063.0,0.0053402]
[1739881146995,0.498297,96064.0,96063.0,0.0053402]
[1739881147320,0.5897644,96064.0,96063.0,0.0003402]
[1739881147522,0.5897644,96064.0,96063.0,0.0023402]
[1739881147670,0.5897644,96064.0,96063.0,0.0043402]
[1739881147886,0.498297,96064.0,96063.0,0.0023402]
[1739881148287,0.156145,96064.0,96063.0,0.0023402]
[1739881148714,0.156145,96064.0,96063.0,0.0828402]
[1739881148938,0.156145,96064.0,96063.0,0.0808402]
[1739881149270,0.156144,96065.0,96063.0,0.13475824]
[1739881149526,0.156145,96064.0,96063.0,0.13475824]
[1739881149701,0.156145,96064.0,96063.0,0.1266402]
[1739881150903,0.156145,96064.0,96063.0,0.0808402]
[1739881151641,0.156145,96064.0,96063.0,0.0003402]
[1739881156908,0.16123439,96064.0,96063.0,0.0003402]
[1739881157283,0.156145,96064.0,96063.0,0.0003402]
[1739881157465,0.156145,96064.0,96063.0,0.0785402]
[1739881158980,0.137305,96064.0,96063.0,0.0785402]
[1739881162367,0.0163156,96067.0,96063.0,0.0785402]
[1739881162566,0.156145,96064.0,96063.0,0.0785402]
[1739881164302,0.15,96079.0,96063.0,0.0785402]
[1739881164437,1.270287,96077.0,96064.0,0.0472]
[1739881164646,0.156144,96065.0,96064.0,0.0472]
[1739881176801,0.156144,96065.0,96064.0,0.0475404]
[1739881177003,0.19273686,96065.0,96064.0,0.0003404]
[1739881177213,0.19290706,96065.0,96064.0,0.0003404]
[1739881177811,0.1563142,96065.0,96064.0,0.0003404]
[1739881180235,0.1563142,96065.0,96064.0,0.0829404]
[1739881186929,0.1563142,96065.0,96064.0,0.0003404]
[1739881188123,0.4984662,96065.0,96064.0,0.0003404]
[1739881188659,0.4984662,96065.0,96064.0,0.0003004]
[1739881189719,0.250584,96065.0,96064.0,0.0003004]
[1739881190129,0.406728,96065.0,96064.0,0.0003004]
[1739881191688,0.156144,96065.0,96064.0,0.0003004]
[1739881195899,0.17245959,96065.0,96064.0,0.0003004]
[1739881197462,0.17245959,96065.0,96064.0,0.0762004]
[1739881202851,0.1563142,96065.0,96064.0,0.0762004]
[1739881207619,0.17263057,96065.0,96064.0,0.0762004]
[1739881208788,0.17263057,96065.0,96064.0,0.0003004]
[1739881209115,2.26600457,96065.0,96064.0,0.0003004]
[1739881209724,2.2496882,96065.0,96064.0,0.0003004]
[1739881210174,2.0543092,96065.0,96064.0,0.0003004]
[1739881210546,1.5565892,96065.0,96064.0,0.0003004]
[1739881210804,1.2252822,96065.0,96064.0,0.0003004]
[1739881210976,0.96208502,96065.0,96064.0,0.0003004]
[1739881211388,1.11822902,96065.0,96064.0,0.0003004]
[1739881211815,1.36881302,96065.0,96064.0,0.0003004]
[1739881213120,1.418256,96065.0,96064.0,0.0003004]
[1739881214916,1.4184262,96065.0,96064.0,0.0003004]
[1739881215585,0.6785482,96065.0,96064.0,0.0003004]
[1739881215816,0.5648992,96065.0,96064.0,0.0003004]
[1739881216782,0.4068982,96065.0,96064.0,0.0003004]
[1739881216981,0.5961912,96065.0,96064.0,0.0003004]
[1739881218565,0.61250799,96065.0,96064.0,0.0003004]
[1739881221617,0.6257131,96065.0,96064.0,0.0003004]
[1739881222576,0.17263099,96065.0,96064.0,0.0829004]
[1739881222855,0.2763202,96065.0,96064.0,0.0829004]
[1739881223699,0.62940785,96065.0,96064.0,0.0003004]
[1739881223913,0.65852859,96065.0,96064.0,0.0003004]
[1739881224055,0.76103224,96065.0,96064.0,0.0003004]
[1739881224482,0.91103224,96065.0,96064.0,0.0003004]
[1739881224687,0.79102624,96065.0,96064.0,0.0003004]
[1739881224917,5.36496324,96065.0,96064.0,0.0003004]
[1739881225113,5.3358425,96065.0,96064.0,0.0003004]
[1739881227300,5.35216167,96065.0,96064.0,0.0003004]
[1739881227504,5.35216167,96065.0,96064.0,4e-07]
[1739881227640,0.0175,96058.0,96034.0,0.1288]
[1739881227825,0.156183,96041.0,96034.0,0.1288]
[1739881228035,3.468682,96041.0,96027.0,0.08]
[1739881228399,5.23320765,96041.0,96027.0,0.08]
[1739881228967,5.2332516,96041.0,96027.0,0.08]
[1739881229165,5.32473597,96041.0,96027.0,0.08]
[1739881229574,5.34538051,96041.0,96040.0,0.0023404]
[1739881230162,5.38458051,96041.0,96040.0,4e-07]
[1739881230362,0.156225,96015.0,96014.0,0.0758]
[1739881230541,0.625162,96015.0,96014.0,0.0758]
[1739881230749,0.156225,96015.0,96014.0,0.0758]
[1739881230956,0.156219,96019.0,96014.0,0.0758]
[1739881231190,0.156219,96019.0,96018.0,0.0768]
[1739881231394,0.01632278,96025.0,96018.0,0.0768]
[1739881231600,0.156215,96022.0,96019.0,0.0752]
[1739881232003,0.208281,96024.0,96019.0,0.0752]
[1739881232216,0.208274,96028.0,96019.0,0.0752]
[1739881232457,0.156212,96023.0,96019.0,0.0752]
[1739881232837,0.208274,96028.0,96019.0,0.0752]
[1739881233060,0.156214,96022.0,96019.0,0.0752]
[1739881233232,0.156212,96023.0,96019.0,0.0752]
[1739881233640,0.208263,96033.0,96019.0,0.0782]
[1739881233838,0.960057,96032.0,96019.0,0.0782]
[1739881234123,0.156217,96020.0,96019.0,0.0752]
[1739881234349,0.156216,96021.0,96019.0,0.0752]
[1739881235005,0.156217,96020.0,96019.0,0.0752]
[1739881235838,0.208287,96022.0,96019.0,0.0752]
[1739881236037,0.12178879,96030.0,96019.0,0.0752]
[1739881236239,0.156217,96020.0,96019.0,0.0762]
[1739881236385,0.156217,96020.0,96019.0,0.0802]
[1739881236582,0.156217,96020.0,96019.0,0.0792]
[1739881236781,0.12277689,96040.0,96019.0,0.0792]
[1739881236782,0.22458067,96035.0,96019.0,0.0792]
[1739881237026,0.001,96020.0,96019.0,0.0852]
[1739881237685,0.001,96020.0,96019.0,0.0812]
[1739881237861,0.001,96020.0,96019.0,0.0815406]
[1739881238057,0.001,96020.0,96019.0,0.0855406]
[1739881238912,0.001,96020.0,96019.0,0.0815406]
[1739881239143,0.001,96020.0,96019.0,0.0865406]
[1739881242533,0.001,96020.0,96019.0,0.2427596]
[1739881242741,0.001,96020.0,96019.0,0.0865406]
[1739881242947,0.001,96020.0,96019.0,0.2427596]
[1739881247097,0.001,96020.0,96019.0,0.36847693]
[1739881247279,0.001,96020.0,96019.0,0.47098058]
[1739881248110,0.0135448,96044.0,96027.0,0.0751]
[1739881248310,0.0009909,96049.0,96040.0,0.1246]
[1739881248517,0.156176,96046.0,96040.0,0.1246]
[1739881248719,0.208229,96048.0,96040.0,0.280784]
[1739881248978,0.156176,96046.0,96040.0,0.280784]
[1739881249162,0.208229,96048.0,96040.0,0.1246]
[1739881249369,0.156173,96047.0,96040.0,0.280783]
[1739881249517,0.156173,96047.0,96040.0,0.280743]
[1739881249729,0.208229,96048.0,96040.0,0.12456]
[1739881249939,0.156175,96046.0,96041.0,0.0509265]
[1739881250132,0.208232,96047.0,96041.0,0.0509265]
[1739881250316,0.208232,96047.0,96040.0,0.12456]
[1739881250317,0.208232,96047.0,96040.0,0.12556]
[1739881250633,0.0001703,96046.0,96040.0,0.12556]
[1739881250835,0.15618,96043.0,96040.0,0.12456]
[1739881251284,0.156176,96045.0,96040.0,0.12456]
[1739881251435,0.0001703,96046.0,96041.0,0.156181]
[1739881251641,0.0001703,96046.0,96041.0,0.156183]
[1739881251842,0.0001703,96046.0,96042.0,0.156181]
[1739881252040,0.156176,96045.0,96040.0,0.12556]
[1739881252314,0.0001703,96046.0,96041.0,0.156181]
[1739881252490,0.0001703,96046.0,96040.0,0.12656]
[1739881252491,0.0001703,96046.0,96042.0,0.20824]
[1739881252633,0.0001703,96046.0,96044.0,0.0772]
[1739881252833,0.0001703,96046.0,96044.0,0.233378]
[1739881253030,0.0001703,96046.0,96045.0,0.156176]
[1739881253658,0.0001703,96046.0,96045.0,0.233376]
[1739881253868,0.03203859,96070.0,96045.0,0.1472356]
[1739881254062,0.156162,96054.0,96048.0,0.156171]
[1739881254268,0.156157,96057.0,96051.0,0.156166]
[1739881254475,0.10250365,96069.0,96047.0,0.0805]
[1739881254681,0.156163,96053.0,96047.0,0.236673]
[1739881254879,0.156163,96053.0,96047.0,0.0805]
[1739881255132,0.156162,96054.0,96048.0,0.156171]
[1739881255257,0.156163,96053.0,96048.0,0.156171]
[1739881255458,0.208212,96056.0,96047.0,0.0805]
[1739881255459,0.208217,96054.0,96047.0,0.0805]
[1739881255916,0.156167,96051.0,96047.0,0.0805]
[1739881256107,0.208212,96056.0,96047.0,0.0805]
[1739881256316,0.15617,96049.0,96047.0,0.0805]
[1739881256704,0.156169,96050.0,96047.0,0.0805]
[1739881257340,0.157167,96051.0,96047.0,0.0805]
[1739881258047,0.001,96051.0,96047.0,0.0805]
[1739881258251,0.157169,96050.0,96047.0,0.0805]
[1739881258673,0.156169,96050.0,96047.0,0.0805]
[1739881259017,0.208221,96052.0,96047.0,0.0805]
[1739881259018,0.156167,96051.0,96047.0,0.0805]
[1739881259418,0.208221,96052.0,96047.0,0.0805]
[1739881259782,0.156171,96048.0,96047.0,0.0805]
[1739881261163,0.156171,96049.0,96047.0,0.0805]
[1739881261378,0.001,96051.0,96047.0,0.0805]
[1739881261719,0.156167,96051.0,96047.0,0.0805]
[1739881262749,0.20819,96066.0,96047.0,0.0805]
[1739881263077,0.001,96051.0,96049.0,0.23477]
[1739881263280,0.001,96051.0,96049.0,0.0786]
[1739881263487,0.001,96051.0,96049.0,0.23477]
[1739881263664,0.001,96051.0,96049.0,0.0786]
[1739881264723,0.156164,96053.0,96049.0,0.0806]
[1739881264920,0.156165,96052.0,96049.0,0.0806]
[1739881265179,0.156163,96053.0,96049.0,0.0806]
[1739881265383,0.208215,96055.0,96049.0,0.236769]
[1739881265614,0.208199,96062.0,96049.0,0.0806]
[1739881265746,0.156165,96052.0,96049.0,0.0836]
[1739881266371,0.01631736,96060.0,96049.0,0.0786]
[1739881266573,0.01631736,96060.0,96051.0,0.208222]
[1739881266754,0.17246936,96060.0,96055.0,0.15616]
[1739881266957,0.156155,96058.0,96053.0,0.156163]
[1739881267156,0.156155,96058.0,96052.0,0.0822]
[1739881267157,0.208206,96059.0,96052.0,0.238365]
[1739881267361,0.156158,96057.0,96052.0,0.0822]
[1739881267581,0.01631736,96060.0,96052.0,0.0822]
[1739881267990,0.156159,96056.0,96052.0,0.0822]
[1739881268190,0.208209,96058.0,96052.0,0.0822]
[1739881268630,0.156157,96057.0,96052.0,0.0822]
[1739881268831,0.208209,96058.0,96052.0,0.0822]
[1739881269094,0.156157,96057.0,96052.0,0.238365]
[1739881270240,0.15616,96056.0,96052.0,0.0822]
[1739881270642,0.208208,96058.0,96052.0,0.0822]
[1739881270845,0.156157,96057.0,96052.0,0.0822]
[1739881271220,0.156157,96057.0,96052.0,0.238364]
[1739881271623,0.22452136,96060.0,96053.0,0.156163]
[1739881271826,0.156155,96059.0,96054.0,0.0493092]
[1739881272028,0.208195,96064.0,96053.0,0.156163]
[1739881272228,0.156156,96058.0,96053.0,0.156163]
[1739881272428,0.156154,96059.0,96053.0,0.156163]
[1739881273025,0.001,96060.0,96052.0,0.238365]
[1739881273226,0.156157,96058.0,96052.0,0.3084962]
[1739881274053,0.001,96060.0,96052.0,0.1523312]
[1739881274271,0.156154,96059.0,96054.0,0.156161]
[1739881274502,0.001,96060.0,96052.0,0.1523312]
[1739881274707,0.001,96060.0,96052.0,0.0822]
[1739881274944,0.156163,96053.0,96052.0,0.0822]
[1739881275875,0.156163,96053.0,96048.0,0.0465]
[1739881276061,0.15617,96049.0,96048.0,0.0465]
[1739881276435,0.156171,96048.0,96047.0,0.0003404]
[1739881276862,0.208226,96050.0,96047.0,0.0003404]
[1739881277204,0.15617,96049.0,96048.0,0.002]
[1739881277439,0.0163168,96060.0,96048.0,0.002]
[1739881277615,0.156163,96053.0,96048.0,0.158171]
[1739881277820,0.0163168,96060.0,96052.0,0.001]
[1739881278043,0.0163168,96060.0,96048.0,0.002]
[1739881278190,0.0163168,96060.0,96049.0,0.128]
[1739881278397,0.15616,96056.0,96049.0,0.284169]
[1739881278601,0.156161,96055.0,96049.0,0.284169]
[1739881278801,0.156163,96054.0,96049.0,0.128]
[1739881279146,0.156164,96053.0,96049.0,0.128]
[1739881279281,0.156165,96052.0,96049.0,0.128]
[1739881279624,0.156167,96051.0,96049.0,0.129]
[1739881279783,0.0163168,96060.0,96049.0,0.129]
[1739881279982,0.156164,96053.0,96049.0,0.128]
[1739881280173,0.156166,96052.0,96049.0,0.128]
[1739881280385,0.156166,96052.0,96049.0,0.13]
[1739881281336,0.0163168,96060.0,96049.0,0.131]
[1739881281511,0.156168,96050.0,96049.0,0.13]
[1739881281714,0.156168,96050.0,96049.0,0.128]
[1739881281921,0.156168,96050.0,96049.0,0.13]
[1739881282650,0.208212,96056.0,96049.0,0.128]
[1739881282851,0.156168,96050.0,96049.0,0.131]
[1739881283676,0.156168,96050.0,96049.0,0.128]
[1739881284110,0.156168,96050.0,96049.0,0.13]
[1739881284886,0.156168,96050.0,96049.0,0.131]
[1739881285103,0.00590222,96050.0,96049.0,0.131]
[1739881285309,0.20822,96052.0,96049.0,0.13]
[1739881285502,0.156167,96051.0,96049.0,0.13]
[1739881285730,0.156168,96050.0,96049.0,0.133]
[1739881286354,0.156168,96050.0,96049.0,0.13]
[1739881286556,0.156168,96050.0,96049.0,0.132]
[1739881286685,0.156168,96050.0,96049.0,0.1323404]
[1739881286885,0.156168,96050.0,96049.0,0.1303404]
[1739881287154,0.156168,96050.0,96049.0,0.1323404]
[1739881287364,0.156168,96050.0,96049.0,0.1303404]
[1739881287574,0.4855863,96050.0,96049.0,0.0023404]
[1739881287723,0.156168,96050.0,96049.0,0.0043404]
[1739881287935,0.156168,96050.0,96049.0,0.0023404]
[1739881288343,0.156168,96050.0,96049.0,0.0053404]
[1739881288544,0.156168,96050.0,96049.0,0.0033404]
[1739881288744,0.156168,96050.0,96049.0,0.0003404]
[1739881289089,0.387872,96050.0,96049.0,0.0003404]
[1739881289740,1.08167484,96050.0,96049.0,0.0003404]
[1739881289931,3.90373884,96050.0,96049.0,0.0003404]
[1739881290139,4.25050284,96050.0,96049.0,0.0003404]
[1739881290334,2.63890284,96050.0,96049.0,0.0003404]
[1739881290557,2.01381284,96050.0,96049.0,0.0003404]
[1739881290762,1.96066884,96050.0,96049.0,0.0003404]
[1739881290957,1.878606,96050.0,96049.0,0.0003404]
[1739881291162,1.880606,96050.0,96049.0,0.0003404]
[1739881291425,1.822716,96050.0,96049.0,0.0003404]
[1739881292039,1.824716,96050.0,96049.0,0.0003404]
[1739881292186,1.394977,96050.0,96049.0,0.0003404]
[1739881292401,0.936222,96050.0,96049.0,0.0003404]
[1739881292601,0.886511,96050.0,96049.0,0.0003404]
[1739881292829,0.775228,96050.0,96049.0,0.0003404]
[1739881293043,0.415962,96050.0,96049.0,0.0003404]
[1739881293262,0.338678,96050.0,96049.0,0.0003404]
[1739881295773,0.35499676,96050.0,96049.0,0.0003404]
[1739881296333,0.25870144,96050.0,96049.0,0.0003404]
[1739881296587,3.55904644,96050.0,96049.0,0.0003404]
[1739881296991,3.80963044,96050.0,96049.0,0.0003404]
[1739881297330,3.75269544,96050.0,96049.0,0.0003404]
[1739881297537,3.48101444,96050.0,96049.0,0.0003404]
[1739881298097,3.46078544,96050.0,96049.0,0.0003404]
[1739881298302,2.67485144,96050.0,96049.0,0.0003404]
[1739881298624,2.41968964,96050.0,96049.0,0.0003404]
[1739881301142,2.31859496,96050.0,96049.0,0.0003404]
[1739881301367,0.29142596,96050.0,96049.0,0.0003404]
[1739881302713,0.2751072,96050.0,96049.0,0.0003404]
[1739881303139,0.5256912,96050.0,96049.0,0.0003404]
[1739881303348,3.1347222,96050.0,96049.0,0.0003404]
[1739881303500,3.5349172,96050.0,96049.0,0.0003404]
[1739881303707,3.40439985,96050.0,96049.0,0.0003404]
[1739881304111,3.10577385,96050.0,96049.0,0.0003404]
[1739881304312,2.89876585,96050.0,96049.0,0.0003404]
[1739881305817,2.91508456,96050.0,96049.0,0.0003404]
[1739881310450,2.81258091,96050.0,96049.0,0.0003004]
[1739881312773,2.7962622,96050.0,96049.0,0.0003004]
[1739881315258,2.89876585,96050.0,96049.0,0.0003004]
[1739881315459,3.04876585,96050.0,96049.0,0.0003004]
[1739881316362,3.04676585,96050.0,96049.0,0.0003004]
[1739881316591,3.1522695,96050.0,96049.0,0.0003004]
[1739881316773,2.8890275,96050.0,96049.0,0.0003004]
[1739881316976,2.80086429,96050.0,96049.0,0.0003004]
[1739881317258,2.79586429,96050.0,96049.0,0.0003004]
[1739881317664,2.80086429,96050.0,96049.0,0.0003004]
[1739881318545,2.71118429,96050.0,96049.0,0.0003004]
[1739881318754,2.29846929,96050.0,96049.0,0.0003004]
[1739881321326,2.07629062,96050.0,96049.0,0.0003004]
[1739881321595,2.23245909,96050.0,96049.0,0.0003004]
[1739881321825,0.306171,96048.0,96047.0,8e-07]
[1739881322016,0.156204,96028.0,96021.0,0.3285]
[1739881322149,0.322068,96028.0,96020.0,0.1303]
[1739881322561,0.156204,96028.0,96020.0,0.1303]
[1739881322767,1.42782451,96028.0,96020.0,0.1303]
[1739881323602,1.42782451,96028.0,96027.0,0.00113195]
[1739881324478,1.60549163,96028.0,96027.0,0.00113195]
[1739881324691,1.75549163,96028.0,96027.0,0.00113195]
[1739881325577,1.75549163,96028.0,96027.0,0.00013195]
[1739881325765,1.77181567,96028.0,96027.0,0.00013195]
[1739881325978,1.77781567,96028.0,96027.0,0.00013195]
[1739881326352,1.70189027,96028.0,96027.0,0.00013195]
[1739881326778,1.70789027,96028.0,96027.0,0.00013195]
[1739881326992,1.71289027,96028.0,96027.0,0.00013195]
[1739881327144,1.73413243,96028.0,96027.0,0.00013195]
[1739881327343,1.73913243,96028.0,96027.0,0.00013195]
[1739881327587,1.84163608,96028.0,96027.0,0.00013195]
[1739881332632,1.63662878,96028.0,96027.0,0.07733195]
[1739881332837,0.50226578,96028.0,96027.0,0.12513195]
[1739881333035,0.49702771,96028.0,96027.0,0.12513195]
[1739881333261,0.20185255,96028.0,96027.0,0.12513195]
[1739881334544,0.20185255,96028.0,96027.0,0.12547235]
[1739881334746,0.95765255,96028.0,96027.0,0.12547235]
[1739881334910,0.61562855,96028.0,96027.0,0.12547235]
[1739881335729,1.00522955,96028.0,96027.0,0.12547235]
[1739881335930,0.20185255,96028.0,96027.0,0.12547235]
[1739881336229,0.63428555,96028.0,96027.0,0.12547235]
[1739881336411,0.04564855,96028.0,96027.0,0.12547235]
[1739881336606,0.016,96028.0,96027.0,0.12547235]
[1739881337294,0.01,96028.0,96027.0,0.12547235]
[1739881337833,0.0001702,96050.0,96029.0,0.082]
[1739881337991,0.15618,96043.0,96041.0,0.082]
[1739881338188,0.07218376,96045.0,96042.0,0.0486]
[1739881338522,0.15618,96043.0,96042.0,0.0486]
[1739881339758,0.16018,96043.0,96042.0,0.0486]
[1739881339904,0.15618,96043.0,96042.0,0.0486]
[1739881340292,0.156188,96038.0,96037.0,0.0752]
[1739881342139,0.156186,96039.0,96037.0,0.0752]
[1739881342343,0.01632026,96041.0,96037.0,0.0752]
[1739881342542,0.156188,96038.0,96037.0,0.0752]
[1739881344494,0.07909672,96040.0,96037.0,0.0752]
[1739881344718,0.01632026,96041.0,96037.0,0.0752]
[1739881345282,0.156187,96039.0,96037.0,0.0752]
[1739881347698,0.156188,96038.0,96037.0,0.0752]
[1739881348434,0.156186,96039.0,96037.0,0.0752]
[1739881348693,0.156182,96042.0,96037.0,0.0752]
[1739881348934,0.02868062,96045.0,96039.0,0.0763]
[1739881349150,0.01632007,96045.0,96039.0,0.1040987]
[1739881349357,0.0001702,96047.0,96046.0,0.288675]
[1739881349567,0.0001702,96047.0,96046.0,0.1325]
[1739881349772,0.0001702,96047.0,96046.0,0.288675]
[1739881351055,0.0001702,96047.0,96046.0,0.290675]
[1739881351913,0.0001702,96047.0,96046.0,0.1355]
[1739881352139,0.0001702,96047.0,96046.0,0.1345]
[1739881352554,0.0001702,96047.0,96046.0,0.1395]
[1739881352758,0.0001702,96047.0,96046.0,0.1375]
[1739881352759,0.1563432,96047.0,96046.0,0.1375]
[1739881352959,0.19281734,96047.0,96046.0,0.1375]
[1739881353166,0.19381734,96047.0,96046.0,0.1435]
[1739881353368,0.5959632,96047.0,96046.0,0.011]
[1739881353575,0.1563432,96047.0,96046.0,0.005]
[1739881353751,0.156183,96041.0,96040.0,0.0798]
[1739881354313,0.156183,96041.0,96040.0,0.06092]
[1739881355478,0.156183,96041.0,96040.0,0.06592]
[1739881355676,0.156183,96041.0,96040.0,0.06992]
[1739881357273,0.17250298,96041.0,96040.0,0.06992]
[1739881358420,0.22235578,96041.0,96040.0,0.06992]
[1739881358756,0.22235578,96041.0,96040.0,0.0702604]
[1739881359143,0.17250298,96041.0,96040.0,0.0702604]
[1739881359345,0.01631998,96041.0,96040.0,0.0702604]
[1739881359811,0.17250298,96041.0,96040.0,0.0702604]
[1739881360113,0.01631998,96041.0,96040.0,0.0702604]
[1739881361013,0.01631998,96041.0,96040.0,0.2264444]
[1739881361373,0.01631998,96041.0,96040.0,0.29548924]
[1739881361574,0.01631998,96041.0,96040.0,0.2264444]
[1739881362118,0.01631998,96041.0,96040.0,0.2751444]
[1739881362330,0.0001702,96047.0,96041.0,0.208243]
[1739881362551,0.0001702,96047.0,96044.0,0.156177]
[1739881362740,0.0001702,96047.0,96042.0,0.0754]
[1739881362963,0.0001702,96047.0,96042.0,0.28364]
[1739881363099,0.0001702,96047.0,96042.0,0.0754]
[1739881363712,0.15618,96043.0,96042.0,0.0754]
[1739881363915,0.156178,96044.0,96042.0,0.0754]
[1739881364337,0.1563452,96047.0,96042.0,0.0754]
[1739881364539,0.156176,96045.0,96042.0,0.0754]
[1739881364720,0.156178,96044.0,96042.0,0.0754]
[1739881364933,0.156177,96045.0,96044.0,0.002]
[1739881365101,0.156177,96045.0,96042.0,0.0754]
[1739881365554,0.0001702,96047.0,96042.0,0.0774]
[1739881365778,0.0001702,96047.0,96042.0,0.0754]
[1739881365967,0.156178,96045.0,96042.0,0.0794]
[1739881366203,0.156178,96045.0,96044.0,0.003]
[1739881366388,0.156178,96045.0,96043.0,0.01945728]
[1739881367781,0.156178,96044.0,96043.0,0.01945728]
[1739881368009,0.15618,96043.0,96042.0,0.0754]
[1739881368487,0.15618,96043.0,96042.0,0.0784]
[1739881368921,0.15618,96043.0,96042.0,0.0754]
[1739881369115,0.15618,96043.0,96042.0,0.09487432]
[1739881369315,0.15618,96043.0,96042.0,0.09887432]
[1739881369675,0.2084022,96047.0,96042.0,0.10187432]
[1739881369862,0.156178,96044.0,96042.0,0.10187432]
[1739881370668,0.156178,96044.0,96043.0,0.01947432]
[1739881371499,0.156178,96044.0,96043.0,0.01943432]
[1739881371779,0.156177,96045.0,96043.0,0.01943432]
[1739881371996,0.156178,96044.0,96043.0,0.01943432]
[1739881372773,0.156178,96044.0,96043.0,0.02243432]
[1739881372984,0.0001702,96046.0,96043.0,0.02543432]
[1739881373529,0.156177,96045.0,96043.0,0.02243432]
[1739881373946,0.156177,96045.0,96043.0,0.02643432]
[1739881374177,0.2084042,96046.0,96043.0,0.02643432]
[1739881374543,0.2084042,96046.0,96043.0,0.004]
[1739881374758,0.156178,96044.0,96043.0,0.006]
[1739881375738,0.156178,96044.0,96043.0,0.002]
[1739881375940,0.2084042,96046.0,96043.0,0.003]
[1739881376144,0.156178,96045.0,96043.0,0.003]
[1739881376326,0.156178,96044.0,96043.0,0.006]
[1739881376534,0.156178,96044.0,96043.0,0.003]
[1739881376733,0.156178,96044.0,96043.0,0.007]
[1739881377652,0.156178,96044.0,96043.0,0.004]
[1739881377886,0.156178,96044.0,96043.0,0.007]
[1739881378275,0.156178,96044.0,96043.0,0.004]
[1739881378511,0.156178,96044.0,96043.0,0.007]
[1739881378859,0.0001702,96046.0,96044.0,0.0767]
[1739881379880,0.1563452,96046.0,96044.0,0.0767]
[1739881380011,0.0001702,96046.0,96044.0,0.0797]
[1739881380222,0.156176,96045.0,96044.0,0.0797]
[1739881380644,0.1563452,96046.0,96044.0,0.0797]
[1739881381105,0.1563452,96046.0,96044.0,0.0817]